[Event "Mukachevo Rating January 2019"]
[Site "Mukachevo"]
[Date "2019.01.13"]
[Round "7"]
[White "Larkin, Vladyslav"]
[Black "Oros, Robert"]
[Result "1-0"]
[ECO "A45"]
[WhiteElo "2311"]
[BlackElo "2312"]
[Annotator "NA"]
[PlyCount "99"]
[EventDate "2019.01.09"]
[EventType "tourn"]
[EventCountry "UKR"]
[SourceTitle "playchess.com"]
[Source "ChessBase"]
[SourceQuality "1"]
[TimeControl "5400+30"]

1. d4 {[%emt 0:00:00]} Nf6 {[%emt 0:00:34]} 2. Bf4 {[%emt 0:00:00]} g6 {[%emt 0:01:00]} 3. e3 {[%emt 0:00:00]} Bg7 {[%emt 0:00:07]} 4. h3 {[%emt 0:00:00]} O-O {[%emt 0:02:37]} 5. Nf3 {[%emt 0:00:00]} d6 {[%emt 0:00:10]} 6. Be2 {[%emt 0:01:04]} Nfd7 {[%emt 0:00:19]} 7. Bh2 {[%emt 0:00:42]} e5 {[%emt 0:00:17]} 8. c4 {[%emt 0:00:25]} exd4 {[%emt 0:02:58]} 9. exd4 {[%emt 0:00:33]} Nc6 {[%emt 0:01:09]} 10. Nc3 {[%emt 0:00:59]} Nf6 {[%emt 0:04:33]} 11. O-O {[%emt 0:00:43]} Re8 {[%emt 0:06:00]} 12. Bd3 {[%emt 0:06:47]} a6 {[%emt 0:01:24]} 13. Re1 {[%emt 0:05:19]} Rxe1+ {[%emt 0:00:45]} 14. Qxe1 {[%emt 0:00:04]} d5 {[%emt 0:09:30]} 15. Rd1 {[%emt 0:18:47]} Nb4 {[%emt 0:13:02]} 16. Bf1 {[%emt 0:00:57]} Bf5 {[%emt 0:17:14]} 17. a3 {[%emt 0:00:10]} Nc6 {[%emt 0:00:08]} 18. g4 {[%emt 0:07:16]} Bc2 {[%emt 0:04:03]} 19. Rd2 {[%emt 0:00:19]} Be4 {[%emt 0:00:13]} 20. Bg2 {[%emt 0:00:32]} h6 {[%emt 0:08:02]} 21. Nxe4 {[%emt 0:03:37]} dxe4 {[%emt 0:02:24]} 22. d5 {[%emt 0:00:13]} Na5 {[%emt 0:03:31]} 23. Ne5 {[%emt 0:00:42]} Nd7 {[%emt 0:03:15]} 24. Nxd7 {[%emt 0:01:40]} Qxd7 {[%emt 0:00:06]} 25. Qxe4 {[%emt 0:01:15]} Re8 {[%emt 0:00:11]} 26. Qd3 {[%emt 0:00:05]} Re1+ {[%emt 0:01:25]} 27. Bf1 {[%emt 0:00:04]} b5 {[%emt 0:01:26]} 28. cxb5 {[%emt 0:09:30]} axb5 {[%emt 0:00:08]} 29. Re2 {[%emt 0:00:15]} Ra1 {[%emt 0:00:38]} 30. Qe4 {[%emt 0:02:35]} Kh7 {[%emt 0:01:18]} 31. Re1 {[%emt 0:01:52]} Rxe1 {[%emt 0:04:15]} 32. Qxe1 {[%emt 0:01:24]} Nb3 {[%emt 0:00:04]} 33. Bg2 {[%emt 0:04:31]} Nd4 {[%emt 0:04:57]} 34. Bf4 {[%emt 0:05:08]} c5 {[%emt 0:05:02]} 35. d6 {[%emt 0:09:29]} Ne6 {[%emt 0:00:36]} 36. Be5 {[%emt 0:00:05]} f6 {[%emt 0:03:59]} 37. Bg3 {[%emt 0:00:28]} Bf8 {[%emt 0:00:14]} 38. Qe4 {[%emt 0:02:47]} Nd8 {[%emt 0:00:40]} 39. Qd3 {[%emt 0:00:25]} c4 {[%emt 0:00:10]} 40. Qd4 {[%emt 0:00:25]} Kg7 {[%emt 0:00:10]} 41. Qb6 {[%emt 0:01:05]} Kf7 {[%emt 0:01:21]} 42. Bd5+ {[%emt 0:00:05]} Ke8 {[%emt 0:00:30]} 43. Qe3+ {[%emt 0:00:05]} Be7 {[%emt 0:00:30]} 44. dxe7 {[%emt 0:00:30]} Qxe7 {[%emt 0:00:05]} 45. Qxh6 {[%emt 0:00:06]} c3 {[%emt 0:00:38]} 46. Qxg6+ {[%emt 0:00:11]} Kd7 {[%emt 0:00:04]} 47. bxc3 {[%emt 0:01:08]} Qe1+ {[%emt 0:00:06]} 48. Kh2 {[%emt 0:00:02]} Qxc3 {[%emt 0:00:06]} 49. Qg7+ {[%emt 0:00:15]} Kc8 {[%emt 0:00:02]} 50. Qa7 {[%emt 0:00:23]} 1-0

[Event "Mukachevo Rating January 2019"]
[Site "Mukachevo"]
[Date "2019.01.13"]
[Round "7"]
[White "Becskei, Zoltan"]
[Black "Baidetskyi, Valentin"]
[Result "0-1"]
[ECO "A00"]
[WhiteElo "2308"]
[BlackElo "2387"]
[Annotator "NA"]
[PlyCount "84"]
[EventDate "2019.01.09"]
[EventType "tourn"]
[EventCountry "UKR"]
[SourceTitle "playchess.com"]
[Source "ChessBase"]
[SourceQuality "1"]
[TimeControl "5400+30"]

1. Nc3 {[%emt 0:00:08]} Nf6 {[%emt 0:00:00]} 2. e4 {[%emt 0:00:57]} d6 {[%emt 0:00:00]} 3. g3 {[%emt 0:01:34]} e5 {[%emt 0:01:38]} 4. Bg2 {[%emt 0:00:13]} Be7 {[%emt 0:00:05]} 5. a4 {[%emt 0:00:30]} O-O {[%emt 0:00:18]} 6. Nf3 {[%emt 0:00:28]} a5 {[%emt 0:00:27]} 7. O-O {[%emt 0:00:25]} Nbd7 {[%emt 0:00:12]} 8. d4 {[%emt 0:00:52]} c6 {[%emt 0:00:28]} 9. Bg5 $146 {[%emt 0:00:48] C41: Philidor Defence} ({Predecessor:} 9. Re1 Re8 10. b3 Bf8 11. Bb2 exd4 12. Nxd4 Nc5 13. Qd2 g6 14. h3 Bg7 15. Rad1 Qb6 16. Kh2 Bd7 {½-½ (46) Andriasian,Z (2621)-Plat,V (2532) Tallinn 2016}) 9... h6 {[%emt 0:04:06]} 10. Bxf6 {[%emt 0:00:13]} Bxf6 {[%emt 0:00:07]} 11. d5 {[%emt 0:00:12]} Nb6 {[%emt 0:05:01]} 12. b3 {[%emt 0:03:00]} Qc7 {[%emt 0:03:22]} 13. Nd2 {[%emt 0:00:16]} Bd7 {[%emt 0:05:17]} 14. Nc4 {[%emt 0:00:46]} Nxc4 {[%emt 0:00:43]} 15. bxc4 {[%emt 0:00:12]} Rfc8 {[%emt 0:07:00]} 16. Ra3 {[%emt 0:00:21]} Bd8 {[%emt 0:02:19]} 17. dxc6 {[%emt 0:07:23]} bxc6 {[%emt 0:01:52]} 18. c5 {[%emt 0:02:17]} dxc5 {[%emt 0:00:19]} 19. Bf3 $17 {[%emt 0:00:26]} Bh3 {[%emt 0:11:37]} 20. Re1 {[%emt 0:00:09]} Bg5 {[%emt 0:00:45]} 21. Qe2 {[%emt 0:15:45]} Rd8 {[%emt 0:00:51]} 22. Nb1 {[%emt 0:01:21]} Bc8 {[%emt 0:06:36]} 23. Qf1 {[%emt 0:02:44]} Rb8 {[%emt 0:04:20]} 24. Be2 {[%emt 0:04:17]} Be6 {[%emt 0:05:14]} 25. h4 {[%emt 0:03:59]} Be7 {[%emt 0:01:46]} 26. c3 {[%emt 0:03:42]} Rb2 {[%emt 0:02:58]} 27. Bc4 {[%emt 0:02:26]} Qd7 {[%emt 0:00:33]} 28. Bxe6 {[%emt 0:05:23]} Qxe6 {[%emt 0:00:04]} 29. c4 {[%emt 0:01:24]} Rd4 {[%emt 0:02:46]} 30. Rc3 {[%emt 0:01:53]} Qg4 {[%emt 0:00:29]} 31. Qg2 {[%emt 0:03:46]} Re2 {[%emt 0:04:21]} 32. Rxe2 {[%emt 0:13:13]} Qxe2 {[%emt 0:00:03]} 33. Kh2 {[%emt 0:01:47]} Qd1 {[%emt 0:02:47]} 34. Na3 {[%emt 0:01:04]} Rd3 {[%emt 0:00:34]} 35. Rc2 {[%emt 0:09:42]} Rxa3 {[%emt 0:00:11]} 36. f4 {[%emt 0:00:10]} exf4 {[%emt 0:00:55]} 37. gxf4 {[%emt 0:05:14]} Bxh4 {[%emt 0:00:09]} 38. Qe2 {[%emt 0:04:53]} Qxe2+ {[%emt 0:00:16]} 39. Rxe2 {[%emt 0:00:08]} Bg3+ {[%emt 0:00:05]} 40. Kh3 {[%emt 0:00:08]} Bxf4+ {[%emt 0:00:07]} 41. Kg4 {[%emt 0:00:06]} Be3 {[%emt 0:01:00]} 42. Kf5 {[%emt 0:00:07]} Bd4 {[%emt 0:00:12]} 0-1

[Event "Mukachevo Rating January 2019"]
[Site "Mukachevo"]
[Date "2019.01.13"]
[Round "7"]
[White "Kagramanianz, Vartan"]
[Black "Tran, David"]
[Result "1/2-1/2"]
[ECO "C45"]
[WhiteElo "2246"]
[BlackElo "2111"]
[Annotator "NA"]
[PlyCount "43"]
[EventDate "2019.01.09"]
[EventType "tourn"]
[EventCountry "UKR"]
[SourceTitle "playchess.com"]
[Source "ChessBase"]
[SourceQuality "1"]
[TimeControl "5400+30"]

1. e4 {[%emt 0:00:00]} e5 {[%emt 0:03:06]} 2. Nf3 {[%emt 0:00:00]} Nc6 {[%emt 0:00:35]} 3. d4 {[%emt 0:00:00]} exd4 {[%emt 0:00:06]} 4. Nxd4 {[%emt 0:00:00]} Bc5 {[%emt 0:00:05]} 5. Be3 {[%emt 0:00:08]} Qf6 {[%emt 0:00:06]} 6. c3 {[%emt 0:00:06]} Nge7 {[%emt 0:00:23]} 7. Nc2 {[%emt 0:00:07]} Bxe3 {[%emt 0:02:31]} 8. Nxe3 {[%emt 0:00:12]} d6 {[%emt 0:00:12]} 9. Bd3 {[%emt 0:00:47]} Ne5 {[%emt 0:00:14]} 10. O-O {[%emt 0:03:40]} g5 {[%emt 0:05:20]} 11. Na3 {[%emt 0:01:58]} Be6 {[%emt 0:04:07]} 12. Nb5 {[%emt 0:03:36]} O-O-O {[%emt 0:00:28]} 13. Nxa7+ {[%emt 0:02:31]} Kb8 {[%emt 0:00:06]} 14. Nb5 {[%emt 0:00:03]} c6 {[%emt 0:00:10]} 15. Nd4 {[%emt 0:00:13]} N7g6 {[%emt 0:00:04]} 16. Be2 {[%emt 0:04:09]} Nf4 {[%emt 0:00:41]} 17. Bg4 {[%emt 0:04:46]} h5 {[%emt 0:00:58]} 18. Bf5 {[%emt 0:01:55]} g4 {[%emt 0:02:16]} 19. Ne2 {[%emt 0:03:31]} Bxf5 $14 {[%emt 0:04:42]} (19... d5 $1 $15 20. Qc2 (20. Nxf4 dxe4 21. Qa4 Bxf5 $15) 20... dxe4 21. Bxe4 Nxe2+ 22. Qxe2 Qf4) 20. exf5 {[%emt 0:02:21]} ({Reject} 20. Nxf5 d5 $17) 20... Nxe2+ {[%emt 0:04:09]} 21. Qxe2 {[%emt 0:00:20]} Rdg8 {[%emt 0:00:05]} 22. Kh1 {[%emt 0:05:29]} 1/2-1/2

[Event "Mukachevo Rating January 2019"]
[Site "Mukachevo"]
[Date "2019.01.13"]
[Round "7"]
[White "Petrovskiy, Vadim"]
[Black "Martynyuk, Elizaveta"]
[Result "0-1"]
[ECO "B34"]
[WhiteElo "2205"]
[BlackElo "2120"]
[Annotator "NA"]
[PlyCount "28"]
[EventDate "2019.01.09"]
[EventType "tourn"]
[EventCountry "UKR"]
[SourceTitle "playchess.com"]
[Source "ChessBase"]
[SourceQuality "1"]
[TimeControl "5400+30"]

1. e4 {[%emt 0:06:00]} c5 {[%emt 0:00:42]} 2. Nf3 {[%emt 0:00:22]} Nc6 {[%emt 0:00:17]} 3. d4 {[%emt 0:00:08]} cxd4 {[%emt 0:00:05]} 4. Nxd4 {[%emt 0:00:04]} g6 {[%emt 0:00:10]} 5. Nc3 {[%emt 0:00:08]} Bg7 {[%emt 0:00:06]} 6. Be3 {[%emt 0:00:08]} Nf6 {[%emt 0:00:05]} 7. Nxc6 {[%emt 0:01:16]} bxc6 {[%emt 0:00:03]} 8. e5 {[%emt 0:00:10]} Ng8 {[%emt 0:00:05]} 9. f4 {[%emt 0:00:09]} f6 {[%emt 0:00:12]} 10. Bd4 {[%emt 0:22:42]} Nh6 {[%emt 0:00:42]} 11. Bd3 {[%emt 0:02:32]} fxe5 {[%emt 0:03:43]} 12. Bxe5 {[%emt 0:01:47]} Bxe5 {[%emt 0:00:18]} 13. fxe5 {[%emt 0:00:06]} Qa5 {[%emt 0:02:31]} 14. Qe2 {[%emt 0:01:30]} Rb8 {[%emt 0:00:38]} 0-1

[Event "Mukachevo Rating January 2019"]
[Site "Mukachevo"]
[Date "2019.01.13"]
[Round "8"]
[White "Shkuran, Danylo"]
[Black "Becskei, Zoltan"]
[Result "1-0"]
[ECO "C77"]
[WhiteElo "2359"]
[BlackElo "2308"]
[Annotator "NA"]
[PlyCount "77"]
[EventDate "2019.01.09"]
[EventType "tourn"]
[EventCountry "UKR"]
[SourceTitle "playchess.com"]
[Source "ChessBase"]
[SourceQuality "1"]
[TimeControl "5400+30"]

1. e4 {[%emt 0:00:00]} e5 {[%emt 0:07:08]} 2. Nf3 {[%emt 0:00:00]} Nc6 {[%emt 0:00:24]} 3. Bb5 {[%emt 0:00:00]} a6 {[%emt 0:00:10]} 4. Ba4 {[%emt 0:00:00]} Nf6 {[%emt 0:00:18]} 5. Qe2 {[%emt 0:00:02]} b5 {[%emt 0:00:14]} 6. Bb3 {[%emt 0:00:04]} Bc5 {[%emt 0:00:25]} 7. c3 {[%emt 0:00:40]} O-O {[%emt 0:00:17]} 8. O-O {[%emt 0:00:09]} d5 {[%emt 0:00:41]} 9. exd5 {[%emt 0:07:59]} Nxd5 {[%emt 0:00:07]} 10. Qe4 {[%emt 0:00:35]} Nde7 {[%emt 0:02:55]} 11. Nxe5 {[%emt 0:00:26]} Nxe5 {[%emt 0:00:03]} 12. Qxe5 {[%emt 0:00:36]} Bd6 {[%emt 0:00:05]} 13. Qg5 {[%emt 0:07:37]} c5 {[%emt 0:00:06]} 14. d4 {[%emt 0:10:54]} cxd4 {[%emt 0:00:04]} 15. cxd4 {[%emt 0:00:10]} Qc7 {[%emt 0:00:04]} 16. h3 {[%emt 0:01:53]} Kh8 {[%emt 0:03:01]} 17. Nc3 {[%emt 0:07:38]} Bb7 {[%emt 0:07:07]} 18. Re1 {[%emt 0:14:50]} f5 {[%emt 0:01:47]} 19. Bf4 {[%emt 0:03:22]} Rf6 {[%emt 0:04:39]} 20. Bxd6 {[%emt 0:14:47]} Qxd6 {[%emt 0:00:17]} 21. Qe3 {[%emt 0:00:14]} Ng6 {[%emt 0:05:41]} 22. d5 {[%emt 0:01:32]} b4 {[%emt 0:02:12]} 23. Na4 {[%emt 0:01:20]} f4 {[%emt 0:02:04]} 24. Qc5 {[%emt 0:09:21]} Qd8 {[%emt 0:11:37]} 25. Qxb4 {[%emt 0:00:19]} Bc8 {[%emt 0:00:36]} 26. Nc5 {[%emt 0:04:13]} Bxh3 {[%emt 0:00:13]} 27. gxh3 {[%emt 0:01:11]} Nh4 {[%emt 0:07:35]} 28. Qe4 {[%emt 0:00:16]} h5 {[%emt 0:05:51]} 29. Ne6 {[%emt 0:02:46]} Qb6 {[%emt 0:05:19]} 30. Rf1 {[%emt 0:05:33]} g5 {[%emt 0:12:17]} 31. Kh1 {[%emt 0:01:17]} Qd6 {[%emt 0:06:11]} 32. Rae1 {[%emt 0:00:55]} Qd7 {[%emt 0:01:46]} 33. Qe5 {[%emt 0:00:50]} Raf8 {[%emt 0:00:08]} 34. Qxg5 {[%emt 0:00:26]} Ng2 {[%emt 0:03:55]} 35. Qxh5+ {[%emt 0:00:24]} Kg8 {[%emt 0:00:08]} 36. Nxf8 {[%emt 0:00:28]} Qd6 {[%emt 0:01:57]} 37. Re6 {[%emt 0:00:46]} Rxe6 {[%emt 0:00:56]} 38. dxe6 {[%emt 0:00:38]} Nh4 {[%emt 0:01:57]} 39. Qf7+ {[%emt 0:00:15]} 1-0

[Event "Mukachevo Rating January 2019"]
[Site "Mukachevo"]
[Date "2019.01.13"]
[Round "8"]
[White "Oros, Robert"]
[Black "Tran, David"]
[Result "1/2-1/2"]
[ECO "C26"]
[WhiteElo "2312"]
[BlackElo "2111"]
[Annotator "NA"]
[PlyCount "87"]
[EventDate "2019.01.09"]
[EventType "tourn"]
[EventCountry "UKR"]
[SourceTitle "playchess.com"]
[Source "ChessBase"]
[SourceQuality "1"]
[TimeControl "5400+30"]

1. e4 {[%emt 0:00:00]} e5 {[%emt 0:00:00]} 2. Nc3 {[%emt 0:00:00]} Nf6 {[%emt 0:00:00]} 3. Bc4 {[%emt 0:00:00]} Bc5 {[%emt 0:00:00]} 4. d3 {[%emt 0:00:12]} d6 {[%emt 0:00:00]} 5. Na4 {[%emt 0:02:10]} Bd4 {[%emt 0:00:40]} 6. c3 {[%emt 0:00:46]} Bxf2+ {[%emt 0:00:42]} 7. Kxf2 {[%emt 0:00:11]} c6 {[%emt 0:00:04]} 8. Nf3 {[%emt 0:01:44]} b5 {[%emt 0:00:50]} 9. Bb3 {[%emt 0:00:06]} bxa4 {[%emt 0:01:54]} 10. Bxa4 {[%emt 0:00:07]} Qb6+ {[%emt 0:00:08]} 11. Ke1 {[%emt 0:01:15]} Nbd7 {[%emt 0:04:44]} 12. Bc2 {[%emt 0:00:36]} O-O {[%emt 0:01:20]} 13. Qe2 {[%emt 0:01:24]} Re8 {[%emt 0:00:18]} 14. Qf2 {[%emt 0:01:19]} Qxf2+ {[%emt 0:04:53]} 15. Kxf2 {[%emt 0:00:07]} Ng4+ {[%emt 0:00:15]} 16. Ke1 {[%emt 0:02:31]} d5 {[%emt 0:00:34]} 17. h3 {[%emt 0:00:29]} Ngf6 {[%emt 0:00:06]} 18. Be3 {[%emt 0:02:02]} Ba6 {[%emt 0:01:22]} 19. Rd1 {[%emt 0:03:33]} Nb6 {[%emt 0:01:46]} 20. Bg5 {[%emt 0:01:29]} dxe4 {[%emt 0:05:02]} 21. dxe4 {[%emt 0:00:09]} Nc4 {[%emt 0:01:32]} 22. Bc1 {[%emt 0:00:24]} Rad8 {[%emt 0:04:27]} 23. Rxd8 {[%emt 0:02:29]} Rxd8 {[%emt 0:00:05]} 24. Kf2 {[%emt 0:00:13]} Rb8 {[%emt 0:05:58]} 25. b3 {[%emt 0:00:51]} Nd6 {[%emt 0:01:09]} 26. Ke3 {[%emt 0:00:34]} c5 {[%emt 0:12:59]} 27. c4 {[%emt 0:03:23]} Nd7 28. Rd1 {[%emt 0:06:28]} Rb6 {[%emt 0:01:39]} 29. Kf2 {[%emt 0:01:18]} Kf8 {[%emt 0:05:32]} 30. Be3 {[%emt 0:04:45]} Ke7 {[%emt 0:00:29]} 31. Bg5+ {[%emt 0:05:16]} f6 {[%emt 0:00:06]} 32. Be3 {[%emt 0:05:17]} Bb7 {[%emt 0:02:07]} 33. Nd2 {[%emt 0:00:36]} Ra6 {[%emt 0:01:01]} 34. Bb1 {[%emt 0:00:49]} Rc6 {[%emt 0:00:40]} 35. g4 {[%emt 0:01:05]} Nf8 {[%emt 0:02:00]} 36. g5 {[%emt 0:02:08]} Ne6 {[%emt 0:00:10]} 37. gxf6+ {[%emt 0:00:23]} gxf6 {[%emt 0:00:01]} 38. Nf1 {[%emt 0:04:47]} Rc8 {[%emt 0:01:26]} 39. Ng3 {[%emt 0:00:19]} Rd8 {[%emt 0:02:16]} 40. Re1 {[%emt 0:04:33]} Rg8 {[%emt 0:02:00]} 41. Bc1 {[%emt 0:00:37]} Rg7 {[%emt 0:07:40]} 42. Rd1 {[%emt 0:04:53]} Rg8 {[%emt 0:01:02]} 43. Rg1 {[%emt 0:04:12]} Rg7 {[%emt 0:02:37]} 44. Re1 {[%emt 0:02:39]} 1/2-1/2

[Event "Mukachevo Rating January 2019"]
[Site "Mukachevo"]
[Date "2019.01.13"]
[Round "8"]
[White "Larkin, Vladyslav"]
[Black "Tiba, Vladyslav"]
[Result "1/2-1/2"]
[ECO "A45"]
[WhiteElo "2311"]
[BlackElo "2405"]
[Annotator "NA"]
[PlyCount "22"]
[EventDate "2019.01.09"]
[EventType "tourn"]
[EventCountry "UKR"]
[SourceTitle "playchess.com"]
[Source "ChessBase"]
[SourceQuality "1"]
[TimeControl "5400+30"]

1. d4 {[%emt 0:00:00]} Nf6 {[%emt 0:00:00]} 2. Bf4 {[%emt 0:00:00]} g6 {[%emt 0:00:00]} 3. e3 {[%emt 0:00:00]} Bg7 {[%emt 0:00:00]} 4. h3 {[%emt 0:00:00]} d6 {[%emt 0:00:00]} 5. Nf3 {[%emt 0:00:00]} O-O {[%emt 0:00:00]} 6. Nbd2 {[%emt 0:01:14]} Nbd7 {[%emt 0:00:59]} 7. Bc4 {[%emt 0:00:06]} b6 {[%emt 0:04:46]} 8. O-O {[%emt 0:00:29]} Bb7 {[%emt 0:00:11]} 9. Qe2 {[%emt 0:00:41]} Ne4 {[%emt 0:00:54]} 10. Nxe4 {[%emt 0:03:33]} Bxe4 {[%emt 0:00:08]} 11. Rad1 {[%emt 0:03:07]} a5 {[%emt 0:06:01]} 1/2-1/2

[Event "Mukachevo Rating January 2019"]
[Site "Mukachevo"]
[Date "2019.01.13"]
[Round "8"]
[White "Martynyuk, Elizaveta"]
[Black "Kagramanianz, Vartan"]
[Result "0-1"]
[ECO "B32"]
[WhiteElo "2120"]
[BlackElo "2246"]
[Annotator "NA"]
[PlyCount "106"]
[EventDate "2019.01.09"]
[EventType "tourn"]
[EventCountry "UKR"]
[SourceTitle "playchess.com"]
[Source "ChessBase"]
[SourceQuality "1"]
[TimeControl "5400+30"]

1. e4 {[%emt 0:16:38]} c5 {[%emt 0:00:00]} 2. Nf3 {[%emt 0:00:08]} Nc6 {[%emt 0:00:00]} 3. d4 {[%emt 0:00:07]} cxd4 {[%emt 0:00:00]} 4. Nxd4 {[%emt 0:00:03]} e5 {[%emt 0:00:00]} 5. Nb5 {[%emt 0:00:04]} a6 {[%emt 0:00:05]} 6. Nd6+ {[%emt 0:00:15]} Bxd6 {[%emt 0:00:06]} 7. Qxd6 {[%emt 0:00:04]} Qe7 {[%emt 0:00:08]} 8. Qd1 {[%emt 0:00:11]} Nf6 {[%emt 0:00:08]} 9. Nc3 {[%emt 0:00:17]} d6 {[%emt 0:00:09]} 10. Bg5 {[%emt 0:01:50]} Be6 {[%emt 0:00:08]} 11. Be2 {[%emt 0:00:46]} O-O {[%emt 0:01:55]} 12. O-O {[%emt 0:00:09]} Rfd8 {[%emt 0:01:00]} 13. f4 {[%emt 0:03:36]} h6 {[%emt 0:03:19]} 14. Bxf6 {[%emt 0:00:34]} Qxf6 {[%emt 0:04:49]} 15. f5 {[%emt 0:00:20]} Bd7 {[%emt 0:08:34]} 16. Nd5 {[%emt 0:00:55]} Qg5 {[%emt 0:01:19]} 17. Rf3 {[%emt 0:01:28]} Rf8 {[%emt 0:18:44]} 18. Nb6 {[%emt 0:02:01]} Qd8 {[%emt 0:05:08]} 19. Nxa8 {[%emt 0:00:21]} Qxa8 {[%emt 0:00:01]} 20. c3 {[%emt 0:02:39]} Qd8 {[%emt 0:05:25]} 21. Kh1 {[%emt 0:00:37]} Qb6 {[%emt 0:03:41]} 22. b4 {[%emt 0:00:17]} Ne7 {[%emt 0:05:06]} 23. f6 {[%emt 0:00:11]} Ng6 {[%emt 0:00:45]} 24. fxg7 {[%emt 0:00:22]} Kxg7 {[%emt 0:00:54]} 25. Rd3 {[%emt 0:00:50]} Bc6 {[%emt 0:01:55]} 26. Rxd6 {[%emt 0:00:26]} Qe3 {[%emt 0:00:33]} 27. Qd3 {[%emt 0:01:43]} Qxe4 {[%emt 0:05:24]} 28. Qxe4 {[%emt 0:00:06]} Bxe4 {[%emt 0:00:04]} 29. Bf3 {[%emt 0:00:19]} Bxf3 {[%emt 0:02:07]} 30. gxf3 {[%emt 0:00:03]} Rc8 {[%emt 0:00:06]} 31. Rc1 {[%emt 0:00:22]} Nh4 {[%emt 0:01:21]} 32. Rg1+ {[%emt 0:01:13]} Ng6 {[%emt 0:00:16]} 33. Rd3 {[%emt 0:00:33]} Rc4 {[%emt 0:02:19]} 34. Rg4 {[%emt 0:00:13]} Rc7 {[%emt 0:00:05]} 35. a4 {[%emt 0:00:46]} h5 {[%emt 0:00:24]} 36. Rg1 {[%emt 0:00:17]} Kf6 {[%emt 0:00:19]} 37. Re1 {[%emt 0:00:38]} Kf5 {[%emt 0:00:33]} 38. Re4 {[%emt 0:03:47]} Nf4 {[%emt 0:01:14]} 39. Rde3 {[%emt 0:00:13]} f6 {[%emt 0:00:05]} 40. c4 {[%emt 0:00:06]} h4 {[%emt 0:00:49]} 41. Re1 {[%emt 0:02:53]} Rd7 {[%emt 0:00:29]} 42. c5 {[%emt 0:00:33]} Rd2 {[%emt 0:05:28]} 43. Rb1 {[%emt 0:01:31]} Rc2 {[%emt 0:01:39]} 44. Ree1 {[%emt 0:01:46]} Nd3 {[%emt 0:01:41]} 45. Rf1 {[%emt 0:01:18]} h3 {[%emt 0:02:09]} 46. Rb3 {[%emt 0:01:52]} Rd2 {[%emt 0:00:29]} 47. f4 {[%emt 0:00:29]} e4 {[%emt 0:01:08]} 48. b5 {[%emt 0:00:30]} axb5 {[%emt 0:02:06]} 49. Rxb5 {[%emt 0:02:25]} Kg4 {[%emt 0:09:12]} 50. Rxb7 {[%emt 0:00:44]} e3 {[%emt 0:00:10]} 51. Rg7+ {[%emt 0:06:22]} Kf5 {[%emt 0:00:21]} 52. Rgg1 {[%emt 0:01:18]} Nf2+ {[%emt 0:01:19]} 53. Rxf2 {[%emt 0:00:05]} exf2 0-1

[Event "Mukachevo Rating January 2019"]
[Site "Mukachevo"]
[Date "2019.01.14"]
[Round "9"]
[White "Tiba, Vladyslav"]
[Black "Oros, Robert"]
[Result "1/2-1/2"]
[ECO "B73"]
[WhiteElo "2405"]
[BlackElo "2312"]
[Annotator "ChessBase"]
[PlyCount "22"]
[EventDate "2019.01.09"]
[EventType "tourn"]
[EventCountry "UKR"]
[SourceTitle "playchess.com"]
[Source "ChessBase"]
[SourceQuality "1"]
[TimeControl "5400+30"]

1. e4 {[%emt 0:00:00]} c5 {[%emt 0:00:00]} 2. Nf3 {[%emt 0:00:00]} d6 {[%emt 0:00:00]} 3. d4 {[%emt 0:00:00]} cxd4 {[%emt 0:00:00]} 4. Nxd4 {[%emt 0:00:01]} Nf6 {[%emt 0:00:02]} 5. Nc3 {[%emt 0:00:04]} Nc6 {[%emt 0:00:08]} 6. Be2 {[%emt 0:00:31]} g6 {[%emt 0:00:08]} 7. O-O {[%emt 0:00:26]} Bg7 {[%emt 0:00:05]} 8. Be3 {[%emt 0:00:21]} O-O {[%emt 0:00:13]} 9. h3 {[%emt 0:01:48]} Bd7 {[%emt 0:00:55]} 10. Nb3 {[%emt 0:01:48]} a5 {[%emt 0:04:18]} 11. a4 {[%emt 0:00:46]} Rc8 {[%emt 0:00:37]} 1/2-1/2

[Event "Mukachevo Rating January 2019"]
[Site "Mukachevo"]
[Date "2019.01.14"]
[Round "9"]
[White "Becskei, Zoltan"]
[Black "Larkin, Vladyslav"]
[Result "0-1"]
[ECO "B21"]
[WhiteElo "2308"]
[BlackElo "2311"]
[Annotator "RC"]
[PlyCount "56"]
[EventDate "2019.01.09"]
[EventType "tourn"]
[EventCountry "UKR"]
[SourceTitle "playchess.com"]
[Source "ChessBase"]
[SourceQuality "1"]
[TimeControl "5400+30"]

1. e4 {[%emt 0:00:00]} c5 {[%emt 0:00:00]} 2. d4 {[%emt 0:00:00]} cxd4 {[%emt 0:00:01]} 3. c3 {[%emt 0:00:00]} Nf6 {[%emt 0:00:47]} 4. b3 {[%emt 0:00:49]} Nxe4 {[%emt 0:00:39]} 5. Bb2 {[%emt 0:00:10]} Nc6 {[%emt 0:01:28]} 6. Nf3 {[%emt 0:00:11]} e5 {[%emt 0:06:03]} 7. Bd3 {[%emt 0:00:20]} Nxc3 {[%emt 0:00:49]} 8. Nxc3 {[%emt 0:00:12]} Bb4 {[%emt 0:04:54]} 9. Qd2 {[%emt 0:00:21]} O-O {[%emt 0:00:17]} 10. O-O-O {[%emt 0:00:18]} dxc3 {[%emt 0:02:39]} 11. Bxc3 {[%emt 0:00:14]} Bxc3 {[%emt 0:00:05]} 12. Qxc3 {[%emt 0:00:04]} Qe7 {[%emt 0:15:05]} 13. h4 {[%emt 0:00:19]} e4 {[%emt 0:00:37]} 14. Ng5 {[%emt 0:01:32]} exd3 {[%emt 0:00:55]} 15. Qxd3 {[%emt 0:00:13]} g6 {[%emt 0:01:09]} 16. Nxh7 {[%emt 0:00:10]} Kxh7 {[%emt 0:00:20]} 17. h5 {[%emt 0:00:08]} Qa3+ {[%emt 0:02:28]} 18. Kb1 {[%emt 0:00:19]} Qxa2+ {[%emt 0:00:18]} 19. Kc1 {[%emt 0:00:06]} Qa1+ {[%emt 0:00:12]} 20. Kd2 {[%emt 0:00:21]} Qd4 {[%emt 0:00:23]} 21. hxg6+ {[%emt 0:00:12]} Kg8 {[%emt 0:00:05]} 22. gxf7+ {[%emt 0:00:19]} Rxf7 {[%emt 0:00:06]} 23. Rh4 {[%emt 0:00:30]} Qb2+ {[%emt 0:01:14]} 24. Ke3 {[%emt 0:00:53]} Qxf2+ {[%emt 0:00:10]} 25. Ke4 {[%emt 0:00:09]} Qxh4+ {[%emt 0:00:49]} 26. Kd5 {[%emt 0:00:03]} Nb4+ {[%emt 0:00:12]} 27. Kd6 {[%emt 0:00:04]} Qe7+ {[%emt 0:00:14]} 28. Kc7 {[%emt 0:00:35]} d5# {[%emt 0:00:07]} 0-1

[Event "Mukachevo Rating January 2019"]
[Site "Mukachevo"]
[Date "2019.01.14"]
[Round "9"]
[White "Petrovskiy, Vadim"]
[Black "Shkuran, Danylo"]
[Result "1/2-1/2"]
[ECO "B18"]
[WhiteElo "2205"]
[BlackElo "2359"]
[Annotator "NA"]
[PlyCount "32"]
[EventDate "2019.01.09"]
[EventType "tourn"]
[EventCountry "UKR"]
[SourceTitle "playchess.com"]
[Source "ChessBase"]
[SourceQuality "1"]
[TimeControl "5400+30"]

1. e4 {[%emt 0:00:00]} c6 {[%emt 0:00:00]} 2. d4 {[%emt 0:00:07]} d5 {[%emt 0:00:00]} 3. Nc3 {[%emt 0:00:23]} dxe4 {[%emt 0:00:02]} 4. Nxe4 {[%emt 0:00:09]} Bf5 {[%emt 0:00:09]} 5. Ng3 {[%emt 0:00:15]} Bg6 {[%emt 0:00:08]} 6. h4 {[%emt 0:00:18]} h6 {[%emt 0:00:09]} 7. h5 {[%emt 0:00:26]} Bh7 {[%emt 0:00:09]} 8. Nf3 {[%emt 0:00:08]} Nd7 {[%emt 0:00:02]} 9. Bd3 {[%emt 0:00:10]} Bxd3 {[%emt 0:00:08]} 10. Qxd3 {[%emt 0:00:10]} Ngf6 {[%emt 0:00:04]} 11. Bd2 {[%emt 0:00:13]} e6 {[%emt 0:00:08]} 12. O-O-O {[%emt 0:00:21]} Bd6 {[%emt 0:00:10]} 13. Ne4 {[%emt 0:00:17]} Nxe4 {[%emt 0:00:04]} 14. Qxe4 {[%emt 0:00:05]} Nf6 {[%emt 0:00:10]} 15. Qe2 {[%emt 0:00:12]} Qc7 {[%emt 0:00:10]} 16. g3 {[%emt 0:00:21]} O-O-O {[%emt 0:00:10]} 1/2-1/2